bitfinex/quotes_BTCUSD_20250303
["timestamp","ask_amount","ask_price","bid_price","bid_amount"]
[1740993862199,0.00100005,91924.0,91902.0,0.3]
[1740993862333,0.02581753,91925.0,91924.0,0.163178]
[1740993862536,0.02581753,91925.0,91924.0,0.17295654]
[1740993862767,0.02581753,91925.0,91924.0,0.00977854]
[1740993862976,0.0003394,91925.0,91924.0,0.00977854]
[1740993863177,0.02581753,91925.0,91924.0,0.31130137]
[1740993863431,0.02581753,91925.0,91924.0,0.30977854]
[1740993863842,0.02581753,91925.0,91924.0,0.00977854]
[1740993864266,0.02547813,91907.0,91906.0,0.217612]
[1740993864590,0.02547813,91907.0,91906.0,0.517612]
[1740993864787,0.02547813,91902.0,91900.0,0.217625]
[1740993865057,0.02547813,91902.0,91885.0,0.38709999]
[1740993865208,0.02547813,91902.0,91889.0,0.00169304]
[1740993865403,0.02547813,91902.0,91901.0,0.16333919]
[1740993866374,0.02547813,91902.0,91901.0,0.00990048]
[1740993866493,0.02547813,91902.0,91901.0,0.47311948]
[1740993866700,0.00100005,91924.0,91905.0,0.3]
[1740993866900,0.0003394,91925.0,91901.0,0.00990048]
[1740993866901,0.02547813,91902.0,91901.0,0.51774419]
[1740993867947,0.0003394,91925.0,91924.0,0.163178]
[1740993868172,0.02547813,91924.0,91923.0,0.163179]
[1740993868391,0.0003394,91925.0,91905.0,0.517616]
[1740993868392,0.02547813,91906.0,91905.0,0.517616]
[1740993869256,0.0003394,91925.0,91924.0,0.163178]
[1740993869522,0.02581753,91925.0,91924.0,0.163178]
[1740993870080,0.02581753,91925.0,91924.0,0.136178]
[1740993871313,0.02547813,91920.0,91899.0,0.217629]
[1740993871550,0.02547813,91905.0,91904.0,0.46831299]
[1740993871907,0.02547813,91905.0,91904.0,0.76831299]
[1740993872570,0.0003394,91925.0,91904.0,0.76831299]
[1740993872571,0.02547813,91908.0,91907.0,0.463208]
[1740993873253,0.02547813,91914.0,91913.0,0.463197]
[1740993873456,0.02547813,91916.0,91915.0,0.463194]
[1740993873815,0.02581753,91925.0,91924.0,0.47771885]
[1740993874059,0.0003394,91925.0,91924.0,0.78281884]
[1740993874271,4e-07,91925.0,91924.0,0.78281884]
[1740993874467,4e-07,91925.0,91924.0,1.40351884]
[1740993874699,0.00033956,91946.0,91945.0,0.463141]
[1740993874878,0.00033956,91946.0,91945.0,1.45388184]
[1740993875505,0.00033956,91946.0,91945.0,0.91008184]
[1740993876872,0.02581769,91946.0,91945.0,0.91008184]
[1740993877078,0.02581769,91946.0,91945.0,0.76824099]
[1740993877311,0.02581769,91946.0,91945.0,0.163141]
[1740993877509,0.02547813,91932.0,91930.0,0.217555]
[1740993877772,0.02547813,91917.0,91916.0,0.240992]
[1740993877945,0.02547813,91925.0,91924.0,0.163178]
[1740993878190,0.02547813,91925.0,91924.0,0.463178]
[1740993878364,0.02547813,91925.0,91924.0,0.163178]
[1740993878765,0.00033956,91946.0,91917.0,0.217587]
[1740993879003,0.02547813,91940.0,91907.0,0.217609]
[1740993879211,0.02547813,91906.0,91903.0,0.0752]
[1740993879409,0.02547813,91904.0,91903.0,0.163215]
[1740993880179,0.02547813,91903.0,91902.0,0.00164333]
[1740993880399,0.02547813,91910.0,91902.0,0.30164333]
[1740993880598,0.00100005,91942.0,91902.0,0.00012019]
[1740993880781,0.02547813,91905.0,91904.0,0.3]
[1740993880977,0.02547813,91905.0,91904.0,0.61964084]
[1740993881165,0.02547813,91905.0,91904.0,0.60509999]
[1740993881364,0.02547813,91905.0,91904.0,0.30509999]
[1740993881584,0.02547813,91904.0,91903.0,0.380835]
[1740993881922,0.02547813,91903.0,91902.0,0.00012019]
[1740993882220,0.02547813,91903.0,91902.0,0.16333719]
[1740993882422,0.02547813,91903.0,91902.0,0.00012019]
[1740993882561,0.00100005,91929.0,91902.0,0.00012019]
[1740993882760,0.02547813,91903.0,91902.0,0.16333719]
[1740993882987,0.02547813,91903.0,91902.0,0.00012019]
[1740993883161,0.02547813,91903.0,91902.0,0.16333719]
[1740993885212,0.02547813,91903.0,91902.0,0.00012019]
[1740993885478,0.02547813,91903.0,91902.0,0.30012019]
[1740993885686,0.02551813,91904.0,91903.0,0.17775585]
[1740993886602,0.02551813,91904.0,91903.0,0.163215]
[1740993887228,0.02551813,91904.0,91903.0,0.463215]
[1740993887428,0.02551813,91904.0,91903.0,0.3]
[1740993887606,0.02551813,91904.0,91903.0,0.163215]
[1740993888183,0.02547813,91903.0,91902.0,0.00012019]
[1740993888606,0.18869313,91903.0,91902.0,0.00012019]
[1740993888808,0.02547813,91903.0,91902.0,0.00012019]
[1740993889051,0.02547813,91903.0,91902.0,0.16333719]
[1740993889233,0.02551813,91904.0,91903.0,0.163215]
[1740993890035,4e-05,91904.0,91903.0,0.163215]
[1740993890412,0.02551813,91904.0,91903.0,0.163215]
[1740993890580,0.02534813,91904.0,91903.0,0.163215]
[1740993890957,0.02534813,91904.0,91903.0,0.463215]
[1740993891741,0.02534813,91904.0,91903.0,0.47775585]
[1740993891944,0.02534813,91905.0,91904.0,0.47775385]
[1740993892694,0.02534813,91905.0,91904.0,0.463213]
[1740993894409,0.02534813,91905.0,91902.0,0.00012019]
[1740993894621,0.02534813,91903.0,91902.0,0.16333719]
[1740993895813,0.02534813,91914.0,91913.0,0.163197]
[1740993897221,0.02534813,91907.0,91906.0,0.517612]
[1740993897425,0.02534813,91908.0,91907.0,0.463208]
[1740993897676,0.02568753,91925.0,91924.0,0.163178]
[1740993897847,0.02568753,91925.0,91924.0,0.47767885]
[1740993898061,0.02568753,91925.0,91924.0,0.55587885]
[1740993899795,0.02568753,91925.0,91924.0,0.47767885]
[1740993900826,4e-07,91925.0,91924.0,0.78277884]
[1740993901075,0.00033956,91946.0,91945.0,0.463141]
[1740993901333,0.00033956,91946.0,91945.0,0.78278184]
[1740993901570,0.00033956,91946.0,91945.0,0.86298184]
[1740993902028,0.02568769,91946.0,91945.0,0.86298184]
[1740993902495,0.02534813,91928.0,91927.0,0.0791]
[1740993902723,0.00033956,91946.0,91945.0,0.163141]
[1740993902997,0.00033956,91946.0,91945.0,0.78278184]
[1740993903237,0.02568769,91946.0,91945.0,0.78278184]
[1740993903707,0.02568769,91946.0,91945.0,0.60509999]
[1740993903963,0.00033956,91946.0,91945.0,0.30509999]
[1740993904196,0.00033956,91946.0,91945.0,0.61964084]
[1740993904637,5.6e-07,91946.0,91945.0,0.74464084]
[1740993904840,5e-08,91962.0,91961.0,0.47765285]
[1740993905047,5e-08,91962.0,91961.0,0.66431285]
[1740993905262,2e-07,91962.0,91961.0,1.51321284]
[1740993905473,2e-07,91962.0,91961.0,1.56181284]
[1740993905890,0.0003396,91974.0,91973.0,0.463091]
[1740993906088,0.00012085,91974.0,91973.0,1.40323184]
[1740993906298,8.5e-07,91974.0,91973.0,1.40323184]
[1740993909074,4.085e-05,91974.0,91973.0,1.40323184]
[1740993909247,0.00021115,91974.0,91973.0,1.40323184]
[1740993910053,0.0138336,91986.0,91976.0,0.463086]
[1740993910256,0.013093,91986.0,91985.0,0.16307]
[1740993910458,0.0023496,91993.0,91991.0,0.05]
[1740993910671,0.0023496,91993.0,91992.0,1.46382703]
[1740993910872,0.0023496,91993.0,91992.0,1.46230567]
[1740993911072,0.0023496,91993.0,91992.0,1.43485784]
[1740993911271,0.0023496,91993.0,91992.0,1.44927907]
[1740993912039,0.0023496,91993.0,91992.0,1.47606634]
[1740993913196,0.0023496,91993.0,91992.0,1.43473822]
[1740993913395,0.0023496,91993.0,91992.0,0.78257822]
[1740993914608,0.0023496,91993.0,91992.0,0.82390634]
[1740993915868,6e-07,91993.0,91992.0,0.87320634]
[1740993916064,6e-07,91993.0,91992.0,0.89854279]
[1740993917135,0.0003002,92000.0,91999.0,0.463045]
[1740993917370,2e-07,92000.0,91999.0,1.45916238]
[1740993917956,2e-07,92000.0,91999.0,1.43237511]
[1740993918116,2e-07,92000.0,91999.0,1.38904499]
[1740993918317,0.02534833,92000.0,91999.0,0.92599999]
[1740993918582,0.02534813,91993.0,91992.0,0.01442123]
[1740993918876,0.02534813,91992.0,91991.0,0.217412]
[1740993919114,0.02534813,91992.0,91991.0,0.23195285]
[1740993919537,0.02534813,91983.0,91982.0,0.25451142]
[1740993919711,0.02534813,91984.0,91983.0,0.163073]
[1740993919919,2e-07,92000.0,91999.0,0.463045]
[1740993920133,2e-07,92000.0,91999.0,0.17758585]
[1740993920945,2e-07,92000.0,91999.0,1.43364584]
[1740993921185,2e-07,92000.0,91999.0,1.56374584]
[1740993921975,2e-07,92000.0,91999.0,1.59053311]
[1740993922219,2e-07,92000.0,91999.0,1.61979487]
[1740993922436,2e-07,92000.0,91999.0,1.66979487]
[1740993922638,8e-07,92011.0,92010.0,0.463025]
[1740993922843,8e-07,92011.0,92010.0,1.32646584]
[1740993922996,1e-06,92011.0,92010.0,1.38251487]
[1740993923201,4e-07,92018.0,92017.0,0.463013]
[1740993923425,4e-07,92018.0,92017.0,0.50434112]
[1740993923627,4e-07,92018.0,92017.0,0.53360288]
[1740993924590,0.0004,92019.0,92018.0,0.47755185]
[1740993924979,1e-06,92019.0,92018.0,1.35323911]
[1740993925204,1e-06,92019.0,92018.0,1.38250087]
[1740993926363,0.00201,92039.0,92018.0,1.38250087]
[1740993926364,2e-07,92039.0,92038.0,0.3783]
[1740993926548,0.00012036,92039.0,92038.0,1.56740587]
[1740993927805,0.00012036,92039.0,92038.0,1.51135684]
[1740993928563,0.00012036,92039.0,92038.0,1.5676773]
[1740993928718,3.6e-07,92039.0,92038.0,1.58644411]
[1740993928922,3.6e-07,92039.0,92038.0,1.6159773]
[1740993929298,3.6e-07,92039.0,92038.0,1.55965684]
[1740993930081,4.036e-05,92039.0,92038.0,1.58644411]
[1740993930295,4.036e-05,92039.0,92038.0,1.6159773]
[1740993931098,4.036e-05,92039.0,92038.0,1.62609346]
[1740993931308,4.036e-05,92039.0,92038.0,1.521473]
[1740993932017,0.02529417,92058.0,92054.0,0.462947]
[1740993932151,0.00241043,92055.0,92054.0,0.76804699]
[1740993932768,0.00241043,92055.0,92054.0,0.78258784]
[1740993933468,0.00241043,92055.0,92054.0,0.80704933]
[1740993934264,0.00241043,92055.0,92054.0,0.79250848]
[1740993935384,0.00241043,92055.0,92054.0,0.80704933]
[1740993935939,4.3e-07,92055.0,92054.0,0.80704933]
[1740993936135,4.3e-07,92059.0,92058.0,0.46294]
[1740993936316,0.0001702,92085.0,92069.0,0.47746185]
[1740993936515,0.0001702,92085.0,92069.0,0.52446185]
[1740993936516,0.00213006,92070.0,92069.0,0.52446185]
[1740993937675,0.00213006,92070.0,92069.0,1.37336184]
[1740993938937,0.00213006,92070.0,92069.0,1.383478]
[1740993939552,0.00213006,92070.0,92069.0,1.39439029]
[1740993941411,8.6e-07,92080.0,92077.0,0.462907]
[1740993941619,8.6e-07,92080.0,92079.0,0.47744385]
[1740993941815,8.6e-07,92080.0,92079.0,0.55334385]
[1740993941995,8.6e-07,92080.0,92079.0,0.56419743]
[1740993942206,0.00201,92102.0,92082.0,0.3]
[1740993942207,6e-08,92086.0,92082.0,0.3]
[1740993942373,6e-08,92086.0,92085.0,0.162892]
[1740993942797,6e-08,92086.0,92085.0,0.17373901]
[1740993943645,6e-08,92086.0,92085.0,0.18979987]
[1740993944520,0.00017006,92086.0,92085.0,0.18979987]
[1740993945070,0.00017006,92086.0,92085.0,0.18827986]
[1740993945221,0.00017006,92086.0,92085.0,0.17373901]
[1740993945628,0.00017006,92086.0,92085.0,0.18979975]
[1740993946280,0.00017006,92086.0,92085.0,0.18827986]
[1740993946685,0.00017006,92086.0,92085.0,0.18979979]
[1740993947142,0.00017006,92086.0,92085.0,1.33717985]
[1740993947740,0.00201,92102.0,92098.0,0.462869]
[1740993947884,0.00052004,92099.0,92098.0,1.32630984]
[1740993948079,4e-08,92099.0,92098.0,0.79332495]
[1740993948326,0.00201,92117.0,92110.0,0.462848]
[1740993948579,0.00201,92117.0,92116.0,0.462838]
[1740993949000,0.00201,92117.0,92116.0,0.47359978]
[1740993949650,0.00201,92117.0,92116.0,0.48806552]
[1740993950080,0.02730417,92117.0,92116.0,0.77869977]
[1740993950497,0.02730417,92117.0,92116.0,0.01076178]
[1740993950711,0.02730417,92117.0,92091.0,0.5438]
[1740993950712,0.02529417,92114.0,92105.0,0.162857]
[1740993950917,0.02529417,92101.0,92100.0,0.380021]
[1740993951352,0.02529417,92101.0,92100.0,0.69422941]
[1740993951557,0.02529417,92101.0,92100.0,0.47707441]
[1740993951767,0.02529417,92101.0,92100.0,0.48607658]
[1740993952400,0.02529417,92101.0,92100.0,0.47186817]
[1740993952611,0.02529417,92105.0,92100.0,0.02285945]
[1740993952788,0.02730417,92117.0,92116.0,0.462838]
[1740993952955,0.02730417,92117.0,92116.0,0.3]
[1740993953307,0.02730417,92117.0,92116.0,0.30900549]
[1740993953652,0.02730417,92117.0,92116.0,0.00900549]
[1740993953852,0.02730417,92117.0,92094.0,0.0141683]
[1740993954077,0.02730417,92117.0,92116.0,0.00900549]
[1740993954283,0.02730417,92117.0,92091.0,0.217174]
[1740993954487,0.02529417,92086.0,92085.0,0.321269]
[1740993954844,0.02529417,92085.0,92084.0,0.25782288]
[1740993955051,0.02529417,92085.0,92084.0,0.27184274]
[1740993955255,0.02529417,92085.0,92084.0,0.16301404]
[1740993955497,0.02529417,92085.0,92084.0,0.00012004]
[1740993956746,0.02529417,92085.0,92084.0,0.16301404]
[1740993957086,0.02529417,92085.0,92084.0,0.00012004]
[1740993957290,0.02529417,92085.0,92084.0,0.46301404]
[1740993957478,0.00100005,92108.0,92084.0,0.46301404]
[1740993957479,0.02629422,92108.0,92107.0,0.162854]
[1740993957683,0.02529417,92089.0,92088.0,0.462887]
[1740993958094,0.02847422,92117.0,92116.0,0.162838]
[1740993958293,0.02847422,92117.0,92098.0,0.162869]
[1740993958294,0.02529417,92099.0,92098.0,0.162869]
[1740993958773,0.02747417,92117.0,92116.0,0.162838]
[1740993959221,0.02747417,92117.0,92116.0,0.462838]
[1740993959595,0.00218,92117.0,92116.0,0.462838]
[1740993959814,0.02747417,92117.0,92116.0,0.462838]
[1740993960168,0.02747417,92117.0,92116.0,0.435838]
[1740993960651,0.02747417,92117.0,92116.0,0.3]
[1740993961542,0.19031017,92117.0,92116.0,0.3]
[1740993961747,0.19031017,92117.0,92098.0,0.30509999]
[1740993961748,0.02529417,92099.0,92098.0,0.30509999]
[1740993962160,0.02529417,92099.0,92083.0,0.30509999]
[1740993962366,0.02529417,92084.0,92083.0,0.30509999]
[1740993962572,0.02529417,92083.0,92082.0,0.00012004]
[1740993962969,0.18819017,92083.0,92082.0,0.00012004]
[1740993963158,0.18919022,92083.0,92082.0,0.00012004]
[1740993963308,0.30624704,92083.0,92082.0,0.00012004]
[1740993963489,0.267191,92085.0,92031.0,0.0819]
[1740993963490,0.18823617,92057.0,92038.0,0.00034]
[1740993963698,0.18823617,92057.0,92041.0,0.217293]
[1740993963897,0.18823617,92057.0,92038.0,0.21764]
[1740993964094,0.02529417,92057.0,92047.0,0.16296]
[1740993964308,0.02529417,92057.0,92056.0,0.09504894]
[1740993964747,0.02529417,92057.0,92056.0,0.31230694]
[1740993965661,0.02529417,92057.0,92056.0,0.09504894]
[1740993965957,0.02529417,92057.0,92056.0,0.00012006]
[1740993966377,0.02629422,92057.0,92056.0,0.00012006]
[1740993966701,0.02529417,92057.0,92056.0,0.00012006]
[1740993968323,0.02529417,92057.0,92056.0,0.00046006]
[1740993968527,0.217212,92076.0,92056.0,0.00046006]
[1740993968528,0.3241,92089.0,92056.0,0.00046006]
[1740993968773,0.00100005,92088.0,92057.0,0.00152061]
[1740993968974,0.02529417,92058.0,92057.0,0.46446261]
[1740993969174,0.02529417,92058.0,92057.0,0.462942]
[1740993970162,0.02529417,92082.0,92081.0,0.4629]
[1740993970376,0.00017,92086.0,92081.0,0.4629]
[1740993970377,0.02546417,92086.0,92085.0,0.162892]
[1740993970629,0.02546417,92086.0,92085.0,0.46441221]
[1740993970630,0.00017,92086.0,92085.0,0.46441221]
[1740993970830,0.00017,92086.0,92085.0,0.84859199]
[1740993971116,0.00017,92086.0,92085.0,0.87665072]
[1740993971251,0.00017,92086.0,92085.0,0.91010987]
[1740993971858,0.00017,92086.0,92085.0,0.92465072]
[1740993972262,0.00017,92086.0,92085.0,0.91010987]
[1740993973537,0.00017,92086.0,92085.0,0.91956859]
[1740993974307,0.00218,92117.0,92102.0,0.217148]
[1740993974513,0.00230002,92117.0,92116.0,0.462838]
[1740993974745,0.00230002,92117.0,92116.0,0.47737885]
[1740993974967,0.00230002,92117.0,92116.0,0.55454608]
[1740993975626,0.00230002,92117.0,92116.0,0.56908693]
[1740993976070,2e-08,92117.0,92116.0,0.56908693]
[1740993976352,7e-05,92143.0,92116.0,1.25514892]
[1740993976529,7e-05,92143.0,92131.0,0.462811]
[1740993976974,7e-05,92143.0,92131.0,0.47235362]
[1740993978183,7e-05,92143.0,92131.0,0.00954262]
[1740993978573,0.164819,92133.0,92131.0,0.00954262]
[1740993978798,0.00201,92133.0,92105.0,0.10584]
[1740993978991,0.00117015,92132.0,92121.0,0.162829]
[1740993979141,0.00117015,92132.0,92108.0,0.00151969]
[1740993979346,0.0001701,92132.0,92122.0,0.00947223]
[1740993979691,0.0001701,92132.0,92130.0,0.162813]
[1740993979908,0.0001701,92132.0,92131.0,0.00946238]
[1740993980449,0.00117015,92132.0,92105.0,0.00012002]
[1740993980661,0.217082,92131.0,92106.0,0.217141]
[1740993980866,0.00100005,92130.0,92116.0,0.0003398]
[1740993981468,0.162835,92118.0,92117.0,0.0095019]
[1740993981674,0.162835,92118.0,92116.0,0.0003398]
[1740993981871,0.05100005,92117.0,92116.0,0.0003398]
[1740993982271,0.00100005,92117.0,92116.0,0.0003398]
[1740993982715,0.16383605,92117.0,92116.0,0.0003398]
[1740993983154,0.21383605,92117.0,92116.0,0.0003398]
[1740993983597,0.16383605,92117.0,92116.0,0.0003398]
[1740993983841,0.21383605,92117.0,92116.0,0.0003398]
[1740993984059,0.212855,92106.0,92105.0,0.00012002]
[1740993984265,1.3093105,92106.0,92105.0,0.00012002]
[1740993984464,1.30831045,92106.0,92105.0,0.00012002]
[1740993984664,0.814428,92089.0,92047.0,0.30509999]
[1740993984917,0.05,92083.0,92047.0,0.30509999]
[1740993985157,0.162942,92058.0,92057.0,0.00957893]
[1740993985559,0.16293,92064.0,92052.0,0.217267]
[1740993985715,0.00100005,92063.0,92053.0,0.217265]
[1740993985931,0.21820005,92081.0,92057.0,0.01114336]
[1740993986132,0.15604,92103.0,92057.0,0.00152087]
[1740993986337,0.00100005,92102.0,92059.0,0.3]
[1740993986506,0.00100005,92102.0,92061.0,0.3]
[1740993986703,0.00100005,92102.0,92065.0,0.3]
[1740993986952,0.00100005,92102.0,92085.0,0.162891]
[1740993987264,0.00100005,92102.0,92079.0,0.3]
[1740993987418,0.00100005,92102.0,92086.0,0.0097395]
[1740993987625,0.00100005,92102.0,92065.0,0.00152035]
[1740993987626,0.05,92101.0,92065.0,0.00152035]
[1740993987826,0.00100005,92100.0,92081.0,0.3]
[1740993988034,0.162873,92096.0,92082.0,0.22694088]
[1740993988241,0.00100005,92095.0,92090.0,0.162882]
[1740993988442,0.00100005,92102.0,92101.0,0.162864]
[1740993988645,0.00011995,92103.0,92101.0,0.00970068]
[1740993988872,0.00011995,92103.0,92099.0,0.162868]
[1740993989213,0.00011995,92103.0,92100.0,0.00970167]
[1740993989562,0.00011995,92103.0,92101.0,0.162863]
[1740993989764,0.00011995,92103.0,92101.0,0.17256357]
[1740993990148,0.00011995,92103.0,92101.0,0.16256357]
[1740993990432,0.00011995,92103.0,92101.0,0.00970057]
[1740993990635,0.00011995,92103.0,92099.0,0.162867]
[1740993990832,0.162865,92101.0,92100.0,0.0096896]
[1740993991039,0.00112,92103.0,92098.0,0.162869]
[1740993991234,0.00112,92103.0,92099.0,0.0096907]
[1740993991501,0.162868,92099.0,92092.0,0.3]
[1740993991742,0.00112,92103.0,92092.0,0.3]
[1740993991743,0.00011995,92103.0,92093.0,0.00969274]
[1740993991945,0.162876,92095.0,92093.0,0.00969274]
[1740993992273,0.00100005,92094.0,92086.0,0.3]
[1740993992477,0.00100005,92101.0,92092.0,0.16288]
[1740993992681,0.00011995,92103.0,92087.0,0.00969931]
[1740993992891,0.162877,92094.0,92093.0,0.00969274]
[1740993993108,0.162889,92087.0,92086.0,0.0003398]
[1740993993285,0.16388905,92087.0,92086.0,0.0003398]
[1740993994054,0.5525299,92087.0,92086.0,0.0003398]
[1740993994258,0.55152985,92087.0,92086.0,0.0003398]
[1740993994834,0.50152985,92087.0,92086.0,0.0003398]
[1740993995035,0.536989,92087.0,92050.0,0.00152083]
[1740993995292,0.162919,92070.0,92047.0,0.3]
[1740993995473,0.16482184,92069.0,92051.0,0.00128078]
[1740993995679,0.00190084,92069.0,92051.0,0.00128078]
[1740993995876,0.00190102,92076.0,92052.0,0.00979004]
[1740993996228,0.05,92075.0,92039.0,0.00031224]
[1740993996454,0.162972,92040.0,92039.0,0.00031224]
[1740993996653,0.162972,92040.0,92039.0,0.00071267]
[1740993996864,0.00190154,92040.0,92039.0,0.00071267]
[1740993997070,0.162971,92041.0,92039.0,0.00071267]
[1740993997273,0.00190142,92040.0,92039.0,0.00071267]
[1740993997445,0.05,92059.0,92039.0,0.00071267]
[1740993997681,0.3241,92067.0,92039.0,0.00071267]
[1740993997907,0.0019012,92066.0,92040.0,0.30128144]
[1740993998113,0.00190091,92081.0,92048.0,0.162957]
[1740993998318,0.217213,92076.0,92048.0,0.162957]
[1740993998524,0.05,92071.0,92041.0,0.3]
[1740993998696,0.00190116,92070.0,92040.0,0.30509999]
[1740993999270,0.00190087,92075.0,92041.0,0.30128085]
[1740993999478,0.05,92078.0,92041.0,0.3]
[1740993999656,0.00190102,92077.0,92042.0,0.00128116]
[1740993999860,0.267211,92076.0,92042.0,0.00999659]
[1740994000058,0.05,92072.0,92042.0,0.00999659]
[1740994000217,0.162947,92055.0,92042.0,0.00999659]
[1740994000416,0.00190116,92054.0,92042.0,0.00999659]
[1740994000639,1.08646053,92071.0,92039.0,0.00071267]
[1740994000640,0.162958,92049.0,92039.0,0.00071267]
[1740994000843,0.162965,92045.0,92043.0,0.00833462]
[1740994001044,0.00190134,92044.0,92039.0,0.00071267]
[1740994001240,0.162972,92040.0,92039.0,0.00071267]
[1740994001644,0.3,92065.0,92039.0,0.00071267]
[1740994001806,0.00190136,92062.0,92039.0,0.00071267]
[1740994002848,0.35,92070.0,92039.0,0.00071267]
[1740994002849,0.162972,92040.0,92039.0,0.00071267]
[1740994003278,0.16487349,92040.0,92039.0,0.00071267]
[1740994004570,0.16487349,92040.0,92039.0,0.00105247]
[1740994004767,0.20026776,92040.0,92039.0,0.00105247]
[1740994004989,0.16487349,92040.0,92039.0,0.00105247]
[1740994005190,0.16487349,92040.0,92006.0,0.0003398]
[1740994005191,0.163015,92017.0,92006.0,0.0003398]
[1740994005532,0.00190184,92018.0,92006.0,0.00045986]
[1740994005706,0.163013,92017.0,92007.0,0.00838428]
[1740994005911,0.163013,92017.0,92006.0,0.00045986]
[1740994005912,0.163,92025.0,92006.0,0.00045986]
[1740994006119,0.00190184,92024.0,92006.0,0.00045986]
[1740994006309,0.00190184,92039.0,92010.0,0.163025]
[1740994006475,0.162987,92032.0,92011.0,0.00837989]
[1740994006705,0.00190178,92031.0,92011.0,0.00837989]
[1740994007516,0.00190178,92031.0,92011.0,0.17140289]
[1740994008012,0.00190178,92031.0,92011.0,0.00837989]
[1740994008240,0.217304,92037.0,92012.0,0.245221]
[1740994008441,0.162984,92034.0,92013.0,0.00840271]
[1740994008656,0.21920778,92036.0,92013.0,0.00840271]
[1740994008657,0.162987,92032.0,92013.0,0.00840271]
[1740994008886,0.16489178,92031.0,92013.0,0.00840271]
[1740994009102,0.16299,92030.0,92013.0,0.00840271]
[1740994009351,0.00190178,92029.0,92013.0,0.00840271]
[1740994009546,0.217306,92036.0,92013.0,0.00840271]
[1740994009547,0.00190178,92035.0,92013.0,0.00840271]
[1740994009922,0.21921078,92035.0,92013.0,0.00840271]
[1740994010128,0.162987,92032.0,92012.0,0.0822]
[1740994010494,0.00190178,92031.0,92013.0,0.00839994]
[1740994010793,0.162978,92037.0,92015.0,0.163016]
[1740994010916,0.162981,92035.0,92014.0,0.00128267]
[1740994011113,0.00190166,92036.0,92014.0,0.00128267]
[1740994011470,0.00190166,92036.0,92015.0,0.00839775]
[1740994011824,0.00190166,92044.0,92016.0,0.00128243]
[1740994012229,0.00190166,92044.0,92017.0,0.00839555]
[1740994012433,0.00190166,92044.0,92018.0,0.00128205]
[1740994012741,0.16486666,92044.0,92024.0,0.163]
[1740994012941,0.16486666,92044.0,92025.0,0.00841223]
[1740994013141,0.00190166,92044.0,92025.0,0.00841223]
[1740994013549,0.0019016,92043.0,91985.0,0.01012552]
[1740994013811,0.217294,92041.0,92017.0,0.008421]
[1740994013959,0.00190178,92040.0,92017.0,0.008421]
[1740994014175,0.00190165,92048.0,92017.0,0.008421]
[1740994014734,0.162972,92041.0,92022.0,0.163004]
[1740994014981,0.00190147,92040.0,92023.0,0.00836489]
[1740994015179,0.00190147,92045.0,92023.0,0.00964694]
[1740994015379,0.00190131,92065.0,92048.0,0.162957]
[1740994015627,0.00190131,92065.0,92044.0,0.0765]
[1740994015820,0.00190078,92084.0,92049.0,0.00834191]
[1740994015931,0.00190078,92084.0,92044.0,0.0765]
[1740994016133,0.00190078,92084.0,92045.0,0.00961245]
[1740994016336,0.01329672,92084.0,92064.0,0.217238]
[1740994016582,0.00190073,92083.0,92065.0,0.00830987]
[1740994017149,0.00190073,92083.0,92066.0,0.00830877]
[1740994017352,0.0001701,92048.0,92046.0,0.12817878]
[1740994017527,0.0001701,92048.0,92047.0,0.22422481]
[1740994018072,0.0001701,92048.0,92047.0,0.44150481]
[1740994018275,0.0001701,92048.0,92047.0,0.00694481]
[1740994018687,0.0001701,92048.0,92047.0,0.00706487]
[1740994020553,0.0001701,92048.0,92047.0,0.08916487]
[1740994020789,0.0001701,92048.0,92047.0,0.2318845]
[1740994022039,0.0001701,92048.0,92047.0,0.3948445]
[1740994022250,0.0001701,92048.0,92047.0,0.6948445]
[1740994022936,0.0001701,92048.0,92047.0,0.21734365]
[1740994023172,0.0001701,92048.0,92047.0,0.13524365]
[1740994023391,0.0001701,92048.0,92047.0,0.29820365]
[1740994023608,0.0001701,92048.0,92047.0,0.00706487]
[1740994023836,0.1631281,92048.0,92047.0,0.00706487]
[1740994024080,0.46502937,92048.0,92047.0,0.00706487]
[1740994024315,0.4631281,92048.0,92047.0,0.00012006]
[1740994025235,0.3,92047.0,92006.0,0.0003398]
[1740994025489,0.00190153,92046.0,92012.0,0.01319533]
[1740994025747,0.00190153,92046.0,92013.0,0.00722943]
[1740994025748,0.162965,92044.0,92013.0,0.00722943]
[1740994025988,0.163018,92014.0,92012.0,0.00012016]
[1740994026233,0.00190202,92013.0,92012.0,0.00012016]
[1740994027424,0.30190202,92013.0,92012.0,0.00012016]
[1740994027612,0.3,92013.0,92012.0,0.00012016]
[1740994029282,0.445427,92013.0,92012.0,0.00012016]
[1740994029445,0.36454085,92013.0,92012.0,0.00012016]
[1740994029762,0.36454085,92013.0,92012.0,0.00046036]
[1740994030244,0.01454085,92012.0,91968.0,0.217466]
[1740994030500,0.00190245,92011.0,91991.0,0.0001202]
[1740994030975,0.04164433,92010.0,91991.0,0.0001202]
[1740994031190,0.00190245,92009.0,91991.0,0.0001202]
[1740994031411,0.3,92007.0,91991.0,0.0001202]
[1740994031694,0.00190245,92006.0,91991.0,0.0001202]
[1740994031926,0.3,92005.0,91991.0,0.0001202]
[1740994032169,0.00190231,92004.0,91991.0,0.0001202]
[1740994032397,0.30190231,92004.0,91992.0,0.00750571]
[1740994032648,0.217369,92010.0,91992.0,0.00750571]
[1740994032895,0.00190231,92011.0,91991.0,0.0001202]
[1740994033126,0.00190231,92009.0,91993.0,0.00750406]
[1740994033362,0.163008,92020.0,91992.0,0.00750571]
[1740994033610,0.10092,92031.0,91993.0,0.217407]
[1740994033611,0.00190199,92019.0,91993.0,0.217407]
[1740994033844,0.00190199,92020.0,91992.0,0.0805]
[1740994034078,0.00190199,92020.0,91995.0,0.217403]
[1740994034291,0.05,92046.0,91995.0,0.217403]
[1740994034292,0.1570901,92048.0,91999.0,0.3]
[1740994034494,0.00190161,92047.0,92001.0,0.3]
[1740994034681,0.163003,92023.0,92005.0,0.217379]
[1740994034874,0.163008,92020.0,92002.0,0.00759187]
[1740994035045,0.00189969,92019.0,92006.0,0.17061629]
[1740994035208,0.00190187,92021.0,92005.0,0.217378]
[1740994035414,0.3,92045.0,92007.0,0.00755842]
[1740994035616,0.30190165,92043.0,92006.0,0.00756006]
[1740994035819,0.1570901,92048.0,92007.0,0.3]
[1740994036056,0.00190141,92047.0,92023.0,0.0822]
[1740994036473,0.162963,92045.0,92030.0,0.16299]
[1740994036836,0.3743681,92048.0,92023.0,0.0822]
[1740994036837,0.00190141,92044.0,92031.0,0.00753858]
[1740994037138,0.162976,92038.0,92021.0,0.217339]
[1740994037407,0.162976,92038.0,92012.0,0.40022]